Workbook

Sheet 化学工艺（学硕）
A1: 学号 | B1: 姓名 | C1: 智育 | G1: 德育 | K1: 体育 | O1: 综合测评总分 | P1: 排名
C2: 基本分 | D2: 奖惩分 | E2: 总分 | F2: 最终成绩 | G2: 基本分 | H2: 奖惩分 | I2: 总分 | J2: 最终成绩 | K2: 基本分 | L2: 奖惩分 | M2: 总分 | N2: 最终成绩
A3: 2019210601 | B3: 王一帆 | C3: 82.1375001 | D3: 23.333333 | E3: 105.4708331 | F3: 97.36892709 | G3: 101.6851849 | H3: 11.9 | I3: 113.5851849 | J3: 83.08383197 | K3: 100.5 | L3: 0 | M3: 100.5 | N3: 90.95022624 | O3: 94.82501536 | P3: 1
A4: 2019210629 | B4: 刘萌萌 | C4: 85.1732917 | D4: 22.142857 | E4: 107.3161487 | F4: 99.0724919 | G4: 98.9259259 | H4: 0.4 | I4: 99.3259259 | J4: 72.65365237 | K4: 100.5 | L4: 0 | M4: 100.5 | N4: 90.95022624 | O4: 93.9314748 | P4: 2
A5: 2019210619 | B5: 闫星儒 | C5: 81.4458332 | D5: 26.875 | E5: 108.3208332 | F5: 100 | G5: 93.4892705 | H5: -0.5 | I5: 92.9892705 | J5: 68.01859707 | K5: 100 | L5: 0 | M5: 100 | N5: 90.49773756 | O5: 93.60371941 | P5: 3
A6: 2019210580 | B6: 吴明珍 | C6: 87.16708075 | D6: 20.326 | E6: 107.4930807 | F6: 99.23583264 | G6: 97.70769231 | H6: -1.5 | I6: 96.20769231 | J6: 70.37276692 | K6: 100 | L6: 0 | M6: 100 | N6: 90.49773756 | O6: 93.53963623 | P6: 4
A7: 2019210558 | B7: 闫璐 | C7: 83.78583333 | D7: 9.714 | E7: 93.49983333 | F7: 86.31749828 | G7: 99.73846154 | H7: 8 | I7: 107.7384615 | J7: 78.80714587 | K7: 102.5 | L7: 0 | M7: 102.5 | N7: 92.760181 | O7: 86.43367797 | P7: 5
A8: 2019210622 | B8: 要馨惠 | C8: 86.1791669 | D8: 0.8 | E8: 86.9791669 | F8: 80.29772698 | G8: 112.4888892 | H8: 18.3 | I8: 130.7888892 | J8: 95.6677766 | K8: 100.5 | L8: 1 | M8: 101.5 | N8: 91.85520362 | O8: 85.4919642 | P8: 6
A9: 2019210618 | B9: 孙思远 | C9: 82.4416668 | D9: 12.5 | E9: 94.9416668 | F9: 87.64857507 | G9: 94.6925928 | H9: -1 | I9: 93.6925928 | J9: 68.53305424 | K9: 100.9 | L9: 0 | M9: 100.9 | N9: 91.31221719 | O9: 85.15061339 | P9: 7
A10: 2019210520 | B10: 赵洋 | C10: 84.17883333 | D10: 0 | E10: 84.17883333 | F10: 77.71250538 | G10: 116.3115385 | H10: 20.4 | I10: 136.7115385 | J10: 100 | K10: 102.5 | L10: 1 | M10: 103.5 | N10: 93.66515837 | O10: 84.74875377 | P10: 8
A11: 2019210559 | B11: 孙衍鹍 | C11: 82.29416667 | D11: 7.6435 | E11: 89.93766667 | F11: 83.02896498 | G11: 101.4192308 | H11: 11.2 | I11: 112.6192308 | J11: 82.37726825 | K11: 100.5 | L11: 0 | M11: 100.5 | N11: 90.95022624 | O11: 84.64572914 | P11: 9
A12: 2019210614 | B12: 蒋涛 | C12: 86.684472 | D12: 0 | E12: 86.684472 | F12: 80.02566952 | G12: 108.4037036 | H12: 9.9 | I12: 118.3037036 | J12: 86.53527342 | K12: 110.5 | L12: 0 | M12: 110.5 | N12: 100 | O12: 84.37502335 | P12: 10
A13: 2019210576 | B13: 张琪 | C13: 88.175 | D13: 0 | E13: 88.175 | F13: 81.4017003 | G13: 98.80384615 | H13: 9.9 | I13: 108.7038462 | J13: 79.51329301 | K13: 102.5 | L13: 0 | M13: 102.5 | N13: 92.760181 | O13: 83.13384881 | P13: 11
A14: 2019210536 | B14: 吕明珠 | C14: 87.76086957 | D14: 0.4 | E14: 88.16086957 | F14: 81.38865531 | G14: 99.93076923 | H14: 5.4 | I14: 105.3307692 | J14: 77.04599803 | K14: 100.5 | L14: 0 | M14: 100.5 | N14: 90.95022624 | O14: 82.43125833 | P14: 12
A15: 2019210575 | B15: 殷梦凡 | C15: 85.92916667 | D15: 1 | E15: 86.92916667 | F15: 80.25156759 | G15: 98.83076923 | H15: 10.4 | I15: 109.2307692 | J15: 79.89871993 | K15: 102.5 | L15: 0 | M15: 102.5 | N15: 92.760181 | O15: 82.4058413 | P15: 13
A16: 2019210553 | B16: 张平华 | C16: 87.40869665 | D16: 0 | E16: 87.40869665 | F16: 80.69426173 | G16: 100.2076923 | H16: 3 | I16: 103.2076923 | J16: 75.493037 | K16: 102.5 | L16: 0 | M16: 102.5 | N16: 92.760181 | O16: 81.83459061 | P16: 14
A17: 2019210574 | B17: 李孟岩 | C17: 87.50869565 | D17: 0 | E17: 87.50869565 | F17: 80.78657915 | G17: 98.37692308 | H17: 2.4 | I17: 100.7769231 | J17: 73.71500914 | K17: 100.5 | L17: 0 | M17: 100.5 | N17: 90.95022624 | O17: 81.34360724 | P17: 15
A18: 2019210529 | B18: 王奥诚 | C18: 85.0975 | D18: 3.6113333 | E18: 88.7088333 | F18: 81.89452636 | G18: 97.54615385 | H18: -2.5 | I18: 95.04615385 | J18: 69.52313968 | K18: 100.5 | L18: 0 | M18: 100.5 | N18: 90.95022624 | O18: 81.28079639 | P18: 16
A19: 2019210541 | B19: 梁瑀晨 | C19: 86.41180125 | D19: 0 | E19: 86.41180125 | F19: 79.7739444 | G19: 102.0730769 | H19: 1 | I19: 103.0730769 | J19: 75.39457026 | K19: 102.5 | L19: 1 | M19: 103.5 | N19: 93.66515837 | O19: 81.27067513 | P19: 17
A20: 2019210550 | B20: 尹凯 | C20: 87.37307692 | D20: 0 | E20: 87.37307692 | F20: 80.66137819 | G20: 99.41153846 | H20: -0.5 | I20: 98.91153846 | J20: 72.35054157 | K20: 100 | L20: 0 | M20: 100 | N20: 90.49773756 | O20: 80.93307304 | P20: 18
A21: 2019210625 | B21: 董美君 | C21: 87.7310557 | D21: 0 | E21: 87.7310557 | F21: 80.99185827 | G21: 95.8518518 | H21: 0 | I21: 95.8518518 | J21: 70.11248127 | K21: 100.5 | L21: 0 | M21: 100.5 | N21: 90.95022624 | O21: 80.76679704 | P21: 19
A22: 2019210623 | B22: 王永春 | C22: 84.4708331 | D22: 0 | E22: 84.4708331 | F22: 77.98207474 | G22: 106.1074072 | H22: 3 | I22: 109.1074072 | J22: 79.80848466 | K22: 100.5 | L22: 1 | M22: 101.5 | N22: 91.85520362 | O22: 80.69914925 | P22: 20
A23: 2019210630 | B23: 魏俊 | C23: 87.9895654 | D23: 0 | E23: 87.9895654 | F23: 81.23051014 | G23: 94.4037036 | H23: -0.5 | I23: 93.9037036 | J23: 68.68747485 | K23: 100.5 | L23: 0 | M23: 100.5 | N23: 90.95022624 | O23: 80.64885207 | P23: 21
A24: 2019210631 | B24: 秦晨 | C24: 88.2391301 | D24: 0 | E24: 88.2391301 | F24: 81.46090414 | G24: 95.2481482 | H24: -2.5 | I24: 92.7481482 | J24: 67.84222403 | K24: 100.5 | L24: 0 | M24: 100.5 | N24: 90.95022624 | O24: 80.64107771 | P24: 22
A25: 2019210624 | B25: 邢梦可 | C25: 87.4546585 | D25: 0 | E25: 87.4546585 | F25: 80.73669295 | G25: 95.5925928 | H25: 0 | I25: 95.5925928 | J25: 69.92284183 | K25: 100.5 | L25: 0 | M25: 100.5 | N25: 90.95022624 | O25: 80.55025343 | P25: 23
A26: 2019210635 | B26: 成艳 | C26: 84.4838512 | D26: 0.3 | E26: 84.7838512 | F26: 78.27104786 | G26: 99.1851849 | H26: 6 | I26: 105.1851849 | J26: 76.93950787 | K26: 100.9 | L26: 0 | M26: 100.9 | N26: 91.31221719 | O26: 80.26763508 | P26: 24
A27: 2019210620 | B27: 王朋 | C27: 84.1583331 | D27: 3.130333 | E27: 87.2886661 | F27: 80.58345151 | G27: 94.2037036 | H27: 0 | I27: 94.2037036 | J27: 68.906915 | K27: 100.5 | L27: 0 | M27: 100.5 | N27: 90.95022624 | O27: 80.23979906 | P27: 25
A28: 2019210551 | B28: 赵欣怡 | C28: 89.775 | D28: 0 | E28: 89.775 | F28: 82.87879381 | G28: 91.16923077 | H28: -10 | I28: 81.16923077 | J28: 59.37262625 | K28: 102 | L28: 0 | M28: 102 | N28: 92.30769231 | O28: 80.08968092 | P28: 26
A29: 2019210606 | B29: 许顺年 | C29: 86.1950308 | D29: 0 | E29: 86.1950308 | F29: 79.57382551 | G29: 100.040741 | H29: -5 | I29: 95.040741 | J29: 69.51918036 | K29: 102.72 | L29: 0 | M29: 102.72 | N29: 92.95927602 | O29: 79.87751393 | P29: 27
A30: 2019210632 | B30: 李聪聪 | C30: 83.8043481 | D30: 0 | E30: 83.8043481 | F30: 77.36678682 | G30: 99.0222223 | H30: 5.9 | I30: 104.922222 | J30: 76.74715937 | K30: 100 | L30: 0 | M30: 100 | N30: 90.49773756 | O30: 79.50618265 | P30: 28
A31: 2019210617 | B31: 王梅 | C31: 83.9461539 | D31: 0 | E31: 83.9461539 | F31: 77.49769958 | G31: 100.9 | H31: 2.5 | I31: 103.4 | J31: 75.63370376 | K31: 100.9 | L31: 0 | M31: 100.9 | N31: 91.31221719 | O31: 79.46513046 | P31: 29
A32: 2019210603 | B32: 罗梦杰 | C32: 85.4 | D32: 0 | E32: 85.4 | F32: 78.83986624 | G32: 94.3296295 | H32: 2 | I32: 96.329630 | J32: 70.46195997 | K32: 100.5 | L32: 0 | M32: 100.5 | N32: 90.95022624 | O32: 79.33029836 | P32: 30
A33: 2019210610 | B33: 黄萌 | C33: 82.2043481 | D33: 0 | E33: 82.2043481 | F33: 75.8896933 | G33: 100.0222223 | H33: 7.3 | I33: 107.322222 | J33: 78.50268054 | K33: 100.5 | L33: 0 | M33: 100.5 | N33: 90.95022624 | O33: 78.87332142 | P33: 31
A34: 2019210540 | B34: 谢青青 | C34: 83.7583851 | D34: 0 | E34: 83.7583851 | F34: 77.32435454 | G34: 99.27692308 | H34: 0 | I34: 99.276923 | J34: 72.61780841 | K34: 100 | L34: 1 | M34: 101 | N34: 91.40271493 | O34: 78.75060986 | P34: 32
A35: 2019210611 | B35: 贾亦静 | C35: 83.6155277 | D35: 0 | E35: 83.6155277 | F35: 77.19247095 | G35: 99.4444446 | H35: 0.5 | I35: 99.944445 | J35: 73.10607848 | K35: 100.5 | L35: 0 | M35: 100.5 | N35: 90.95022624 | O35: 78.70594536 | P35: 33
A36: 2019210537 | B36: 霍佳宁 | C36: 82.01521739 | D36: 0 | E36: 82.01521739 | F36: 75.71509096 | G36: 97.76153846 | H36: 8 | I36: 105.761539 | J36: 77.36109157 | K36: 100.5 | L36: 0 | M36: 100.5 | N36: 90.95022624 | O36: 78.52278199 | P36: 34
A37: 2019210519 | B37: 侯昆 | C37: 83.47934783 | D37: 0 | E37: 83.47934783 | F37: 77.06675194 | G37: 93.75 | H37: 3 | I37: 96.750000 | J37: 70.76944718 | K37: 100.5 | L37: 0 | M37: 100.5 | N37: 90.95022624 | O37: 78.1506158 | P37: 35
A38: 2019210589 | B38: 李佳奇 | C38: 83.64596273 | D38: 0 | E38: 83.64596273 | F38: 77.22056807 | G38: 94.80384615 | H38: 1.5 | I38: 96.303846 | J38: 70.4431003 | K38: 100 | L38: 0 | M38: 100 | N38: 90.49773756 | O38: 78.14301771 | P38: 36
A39: 2019210615 | B39: 范英韬 | C39: 83.675155 | D39: 0 | E39: 83.675155 | F39: 77.24751789 | G39: 93.4962964 | H39: 0 | I39: 93.496296 | J39: 68.38946987 | K39: 100 | L39: 0 | M39: 100 | N39: 90.49773756 | O39: 77.75115649 | P39: 37
A40: 2019210586 | B40: 王叶 | C40: 80.36956522 | D40: 0.4 | E40: 80.76956522 | F40: 74.5651255 | G40: 101.8192308 | H40: 1 | I40: 102.819231 | J40: 75.20889014 | K40: 102.5 | L40: 0 | M40: 102.5 | N40: 92.760181 | O40: 77.48736588 | P40: 38
A41: 2019210590 | B41: 李瞳 | C41: 81.85217391 | D41: 0 | E41: 81.85217391 | F41: 75.56457192 | G41: 94.33076923 | H41: -0.5 | I41: 93.830769 | J41: 68.63412576 | K41: 102 | L41: 0 | M41: 102 | N41: 92.30769231 | O41: 76.8220255 | P41: 39
A42: 2019210598 | B42: 史艳美 | C42: 81.778882 | D42: 0 | E42: 81.778882 | F42: 75.49691004 | G42: 94.5925928 | H42: 0 | I42: 94.592593 | J42: 69.19137467 | K42: 100.5 | L42: 0 | M42: 100.5 | N42: 90.95022624 | O42: 76.73611197 | P42: 40
A43: 2019210557 | B43: 李正轩 | C43: 80.7922619 | D43: 1.339 | E43: 82.1312619 | F43: 75.82222134 | G43: 93.69615385 | H43: -5 | I43: 88.696154 | J43: 64.87832325 | K43: 100 | L43: 0 | M43: 100 | N43: 90.49773756 | O43: 76.05121959 | P43: 41
A44: 2019210637 | B44: 王武芹 | C44: 79.9510872 | D44: 0 | E44: 79.9510872 | F44: 73.80952014 | G44: 99.459259 | H44: -2 | I44: 97.459259 | J44: 71.28824684 | K44: 100.5 | L44: 0 | M44: 100.5 | N44: 90.95022624 | O44: 75.97431347 | P44: 42
A45: 2019210554 | B45: 张红娟 | C45: 77.54596273 | D45: 0.05 | E45: 77.59596273 | F45: 71.63530822 | G45: 101.1576923 | H45: 4.5 | I45: 105.657692 | J45: 77.28513152 | K45: 100 | L45: 0 | M45: 100 | N45: 90.49773756 | O45: 75.60174206 | P45: 43
A46: 2019210636 | B46: 闫金鹏 | C46: 80.017391 | D46: 0 | E46: 80.017391 | F46: 73.87073071 | G46: 94.6 | H46: -3.5 | I46: 91.100000 | J46: 66.63665776 | K46: 104 | L46: 0 | M46: 104 | N46: 94.11764706 | O46: 75.43684305 | P46: 44
A47: 2019210593 | B47: 李子为 | C47: 78.7559007 | D47: 0 | E47: 78.7559007 | F47: 72.70614375 | G47: 98.2740741 | H47: 0.5 | I47: 98.774074 | J47: 72.2499909 | K47: 100.9 | L47: 0 | M47: 100.9 | N47: 91.31221719 | O47: 75.43429881 | P47: 45
A48: 2019210585 | B48: 李博凤 | C48: 80.18136646 | D48: 0 | E48: 80.18136646 | F48: 74.02211014 | G48: 93.70769231 | H48: -1 | I48: 92.707692 | J48: 67.81263188 | K48: 100 | L48: 0 | M48: 100 | N48: 90.49773756 | O48: 75.37800348 | P48: 46
A49: 2019210596 | B49: 李晗 | C49: 76.8836955 | D49: 0 | E49: 76.8836955 | F49: 70.97775491 | G49: 108.3074072 | H49: -1.5 | I49: 106.807407 | J49: 78.1261102 | K49: 100.5 | L49: 0 | M49: 100.5 | N49: 90.95022624 | O49: 75.35965047 | P49: 47
A50: 2019210528 | B50: 宋亦冬 | C50: 77.01666667 | D50: 3.6113333 | E50: 80.62799997 | F50: 74.4344348 | G50: 93.25 | H50: -3 | I50: 90.250000 | J50: 66.01491068 | K50: 100.5 | L50: 0 | M50: 100.5 | N50: 90.95022624 | O50: 75.3570865 | P50: 48
A51: 2019210581 | B51: 揭玮玮 | C51: 74.48322981 | D51: 0 | E51: 74.48322981 | F51: 68.76168472 | G51: 100.7269231 | H51: 1.9 | I51: 102.626923 | J51: 75.06822338 | K51: 100 | L51: 0 | M51: 100 | N51: 90.49773756 | O51: 73.14682398 | P51: 49
A52: 2019210594 | B52: 张辉 | C52: 74.5565218 | D52: 0 | E52: 74.5565218 | F52: 68.82934667 | G52: 98.5481482 | H52: -1.5 | I52: 97.048148 | J52: 70.9875328 | K52: 100.5 | L52: 0 | M52: 100.5 | N52: 90.95022624 | O52: 72.42804923 | P52: 50

Sheet 化学工程（学硕）
A1: 学号 | B1: 姓名 | C1: 智育 | G1: 德育 | K1: 文体活动 | O1: 综合测评总分 | P1: 排名
C2: 基本分 | D2: 奖惩分 | E2: 总分 | F2: 最终成绩 | G2: 基本分 | H2: 奖惩分 | I2: 总分 | J2: 最终成绩 | K2: 基本分 | L2: 奖惩分 | M2: 总分 | N2: 最终成绩
A3: 2019210524 | B3: 龚雅妮 | C3: 94.033334 | D3: 13.800000 | E3: 107.833334 | F3: 100.000000 | G3: 105.369412 | H3: 11.400000 | I3: 116.769412 | J3: 95.519429 | K3: 103.170588 | L3: 0.000000 | M3: 103.170588 | N3: 84.058087 | O3: =N3*0.1+J3*0.2+F3*0.7 -> 97.509695 | P3: 1
A4: 2019210607 | B4: 武兴红 | C4: 87.30869565 | D4: 12.5 | E4: 99.80869565 | F4: 92.558295 | G4: 103.5673529 | H4: 5.000000 | I4: 108.5673529 | J4: 88.81000099 | K4: 104.3343137 | L4: 0 | M4: 104.3343137 | N4: 85.00623043 | O4: 91.053430 | P4: 2
A5: 2019210526 | B5: 陆炫彤 | C5: 87.275870 | D5: 12.000000 | E5: 99.275870 | F5: 92.064175 | G5: 99.269412 | H5: 7.000000 | I5: 106.269412 | J5: 86.930245 | K5: 104.337255 | L5: 0.000000 | M5: 104.337255 | N5: 85.008627 | O5: 90.331834 | P5: 3
A6: 2019210608 | B6: 张凌玮 | C6: 91.10869565 | D6: 7.5 | E6: 98.60869565 | F6: 91.445467 | G6: 98.23852941 | H6: (1.000000) | I6: 97.23852941 | J6: 79.54282442 | K6: 99.62647059 | L6: 0 | M6: 99.62647059 | N6: 81.17052208 | O6: 88.037444 | P6: 4
A7: 2019210515 | B7: 陈弘男 | C7: 93.454761 | D7: 0.000000 | E7: 93.454761 | F7: 86.665929 | G7: 101.257059 | H7: 5.000000 | I7: 106.257059 | J7: 86.920140 | K7: 100.152941 | L7: 0.000000 | M7: 100.152941 | N7: 81.599463 | O7: 86.210125 | P7: 5
A8: 2019210600 | B8: 张红亮 | C8: =E8-D8 -> 87.19166667 | D8: 6.25 | E8: 93.44166667 | F8: 86.653786 | G8: 107.0570588 | H8: (1.000000) | I8: 106.0570588 | J8: 86.75653632 | K8: 100.1529412 | L8: 0 | M8: 100.1529412 | N8: 81.59946322 | O8: 86.168904 | P8: 6
A9: 2019210517 | B9: 王惠珊 | C9: 89.383332 | D9: 0.000000 | E9: 89.383332 | F9: 82.890261 | G9: 107.869412 | H9: 9.500000 | I9: 117.369412 | J9: 96.010240 | K9: 104.337255 | L9: 0.000000 | M9: 104.337255 | N9: 85.008627 | O9: 85.726093 | P9: 7
A10: 2019210512 | B10: 梅馨元 | C10: 87.500001 | D10: 0.000000 | E10: 87.500001 | F10: 81.143741 | G10: 109.069412 | H10: 4.300000 | I10: 113.369412 | J10: 92.738169 | K10: 111.070588 | L10: 11.666667 | M10: 122.737255 | N10: 100 | O10: 85.348252 | P10: 8
A11: 2019210562 | B11: 李佳 | C11: 84.330425 | D11: 6.500000 | E11: 90.830425 | F11: 84.232232 | G11: 107.085882 | H11: 0.900000 | I11: 107.985882 | J11: 88.334348 | K11: 104.360784 | L11: 0.000000 | M11: 104.360784 | N11: 85.027797 | O11: 85.132212 | P11: 9
A12: 2019210579 | B12: 唐钊艇 | C12: 89.26086957 | D12: 1.125 | E12: 90.38586957 | F12: 83.819971 | G12: 107.0838235 | H12: 0.500000 | I12: 107.5838235 | J12: 88.00545666 | K12: 100.1911765 | L12: 0 | M12: 100.1911765 | N12: 81.63061537 | O12: 84.438133 | P12: 10
A13: 2019210578 | B13: 董滢滢 | C13: 87.83478261 | D13: 3 | E13: 90.83478261 | F13: 84.236274 | G13: 105.9652941 | H13: (2.500000) | I13: 103.4652941 | J13: 84.63642728 | K13: 99.66470588 | L13: 0 | M13: 99.66470588 | N13: 81.20167423 | O13: 84.012844 | P13: 11
A14: 2019210599 | B14: 曾辉 | C14: 88.16666667 | D14: 0 | E14: 88.16666667 | F14: 81.761978 | G14: 102.7776471 | H14: 6.000000 | I14: 108.7776471 | J14: 88.98202527 | K14: 99.68235294 | L14: 0 | M14: 99.68235294 | N14: 81.21605214 | O14: 83.151395 | P14: 12
A15: 2019210563 | B15: 王明龙 | C15: 84.883333 | D15: 0.000000 | E15: 84.883333 | F15: 78.717155 | G15: 112.550882 | H15: 2.900000 | I15: 115.450882 | J15: 94.440849 | K15: 104.810784 | L15: 0.000000 | M15: 104.810784 | N15: 85.394434 | O15: 82.529622 | P15: 13
A16: 2019210570 | B16: 韩月明 | C16: 87.289565 | D16: 0.000000 | E16: 87.289565 | F16: 80.948591 | G16: 104.281765 | H16: (0.500000) | I16: 103.781765 | J16: 84.895306 | K16: 104.854902 | L16: 0.000000 | M16: 104.854902 | N16: 85.430379 | O16: 82.186113 | P16: 14
A17: 2019210572 | B17: 尚伟康 | C17: 85.652164 | D17: 2.232143 | E17: 87.884307 | F17: 81.500129 | G17: 101.748824 | H17: 1.000000 | I17: 102.748824 | J17: 84.05034176 | K17: 101.641176 | L17: 0.000000 | M17: 101.641176 | N17: 82.812001 | O17: 82.141359 | P17: 15
A18: 2019210511 | B18: 邢中彬 | C18: 82.152173 | D18: 5.000000 | E18: 87.152173 | F18: 80.821180 | G18: 98.750882 | H18: (1.000000) | I18: 97.750882 | J18: 79.961938 | K18: 107.977451 | L18: 8.000000 | M18: 115.977451 | N18: 94.492460 | O18: 82.016459 | P18: 16
A19: 2019210613 | B19: 曲美橙 | C19: 86.05 | D19: 0 | E19: 86.05 | F19: 79.799072 | G19: 106.7776471 | H19: 0.500000 | I19: 107.2776471 | J19: 87.75499893 | K19: 100.1823529 | L19: 0 | M19: 100.1823529 | N19: 81.62342642 | O19: 81.572693 | P19: 17
A20: 2019210544 | B20: 苏志勇 | C20: 81.641677 | D20: 0.000000 | E20: 81.641677 | F20: 75.710982 | G20: 110.246765 | H20: 12.000000 | I20: 122.246765 | J20: 100.000000 | K20: 104.804902 | L20: 0.000000 | M20: 104.804902 | N20: 85.389642 | O20: 81.536652 | P20: 18
A21: 2019210571 | B21: 朱碧才 | C21: 87.502609 | D21: 0.000000 | E21: 87.502609 | F21: 81.146159 | G21: 99.252941 | H21: 0.000000 | I21: 99.252941 | J21: 81.190649 | K21: 100.147059 | L21: 0.000000 | M21: 100.147059 | N21: 81.594671 | O21: 81.199908 | P21: 19
A22: 2019210556 | B22: 刘铭 | C22: 85.762490 | D22: 0.000000 | E22: 85.762490 | F22: 79.532447 | G22: 105.059118 | H22: (1.000000) | I22: 104.059118 | J22: 85.122185 | K22: 99.655882 | L22: 0.000000 | M22: 99.655882 | N22: 81.194485 | O22: 80.816599 | P22: 20
A23: 2019210555 | B23: 魏如成 | C23: 86.291667 | D23: 0.000000 | E23: 86.291667 | F23: 80.023183 | G23: 99.790000 | H23: (0.500000) | I23: 99.290000 | J23: 81.220963 | K23: 104.366667 | L23: 0.000000 | M23: 104.366667 | N23: 85.032590 | O23: 80.763680 | P23: 21
A24: 2019210543 | B24: 焦丛哲 | C24: 84.470823 | D24: 0.000000 | E24: 84.470823 | F24: 78.334611 | G24: 105.544706 | H24: 0.000000 | I24: 105.544706 | J24: 86.337423 | K24: 99.635294 | L24: 0.000000 | M24: 99.635294 | N24: 81.177711 | O24: 80.219484 | P24: 22
A25: 2019210639 | B25: 赵子毅 | C25: 86.53333333 | D25: 0 | E25: 86.53333333 | F25: 80.247294 | G25: 98.78794118 | H25: (1.500000) | I25: 97.28794118 | J25: 79.58324411 | K25: 99.69705882 | L25: 0 | M25: 99.69705882 | N25: 81.22803374 | O25: 80.212558 | P25: 23
A26: 2019210633 | B26: 张秋宁 | C26: 83.45093168 | D26: 0 | E26: 83.45093168 | F26: 77.388808 | G26: 106.0529412 | H26: 0.000000 | I26: 106.0529412 | J26: 86.75316801 | K26: 99.64705882 | L26: 0 | M26: 99.64705882 | N26: 81.18729631 | O26: 79.641529 | P26: 24
A27: 2019210573 | B27: 宋子寒 | C27: 85.02173913 | D27: 0 | E27: 85.02173913 | F27: 78.845507 | G27: 98.77352941 | H27: 0.500000 | I27: 99.27352941 | J27: 81.20749015 | K27: 100.1764706 | L27: 0 | M27: 100.1764706 | N27: 81.61863378 | O27: 79.595216 | P27: 25
A28: 2019210634 | B28: 孔德凯 | C28: 83.07080745 | D28: 0 | E28: 83.07080745 | F28: 77.036297 | G28: 103.3755882 | H28: 0.000000 | I28: 103.3755882 | J28: 84.5630463 | K28: 100.1794118 | L28: 0 | M28: 100.1794118 | N28: 81.6210301 | O28: 79.000120 | P28: 26
A29: 2019210516 | B29: 陈欢 | C29: 83.391668 | D29: 0.000000 | E29: 83.391668 | F29: 77.333849 | G29: 102.267353 | H29: 0.000000 | I29: 102.267353 | J29: 83.656490 | K29: 99.667647 | L29: 0.000000 | M29: 99.667647 | N29: 81.204071 | O29: 78.985399 | P29: 27
A30: 2019210542 | B30: 王炳植 | C30: 84.062490 | D30: 0.000000 | E30: 84.062490 | F30: 77.955941 | G30: 98.255000 | H30: (1.500000) | I30: 96.755000 | J30: 79.147289 | K30: 99.650000 | L30: 0.000000 | M30: 99.650000 | N30: 81.189693 | O30: 78.517585 | P30: 28
A31: 2019210538 | B31: 苑学卿 | C31: 82.270371 | D31: 0.000000 | E31: 82.270371 | F31: 76.294007 | G31: 101.769412 | H31: 0.500000 | I31: 102.269412 | J31: 83.658175 | K31: 100.170588 | L31: 0.000000 | M31: 100.170588 | N31: 81.613841 | O31: 78.298824 | P31: 29
A32: 2019210638 | B32: 程真 | C32: 83.6 | D32: 0 | E32: 83.6 | F32: 77.527047 | G32: 98.24882353 | H32: (2.500000) | I32: 95.74882353 | J32: 78.32421885 | K32: 99.64117647 | L32: 0 | M32: 99.64117647 | N32: 81.18250367 | O32: 78.052027 | P32: 30
A33: 2019210531 | B33: 袁茜娅 | C33: 81.621740 | D33: 0.000000 | E33: 81.621740 | F33: 75.692494 | G33: 102.748824 | H33: (0.500000) | I33: 102.248824 | J33: 83.641333 | K33: 99.641176 | L33: 0.000000 | M33: 99.641176 | N33: 81.182504 | O33: 77.831263 | P33: 31
A34: 2019210549 | B34: 蔡品希 | C34: 79.975000 | D34: 0.000000 | E34: 79.975000 | F34: 74.165378 | G34: 104.746765 | H34: (0.500000) | I34: 104.246765 | J34: 85.275684 | K34: 104.304902 | L34: 0.000000 | M34: 104.304902 | N34: 84.982267 | O34: 77.469128 | P34: 32
A35: 2019210577 | B35: 李永祺 | C35: 81.16521739 | D35: 0.8083333333 | E35: 81.97355072 | F35: 76.018748 | G35: 98.76117647 | H35: (1.000000) | I35: 97.76117647 | J35: 79.97035889 | K35: 99.65882353 | L35: 0 | M35: 99.65882353 | N35: 81.19688159 | O35: 77.326884 | P35: 33
A36: 2019210539 | B36: 郑蕾 | C36: 81.404157 | D36: 0.000000 | E36: 81.404157 | F36: 75.490716 | G36: 98.790000 | H36: 0.000000 | I36: 98.790000 | J36: 80.811955 | K36: 100.200000 | L36: 0.000000 | M36: 100.200000 | N36: 81.637804 | O36: 77.169673 | P36: 34
A37: 2019210597 | B37: 张宇 | C37: 80.325 | D37: 0 | E37: 80.325 | F37: 74.489953 | G37: 98.25911765 | H37: 3.000000 | I37: 101.2591176 | J37: 82.83173619 | K37: 99.65588235 | L37: 0 | M37: 99.65588235 | N37: 81.19448527 | O37: 76.828763 | P37: 35
A38: 2019210530 | B38: 崔峻巍 | C38: 72.859626 | D38: 0.100000 | E38: 72.959626 | F38: 67.659622 | G38: 98.257059 | H38: (2.500000) | I38: 95.757059 | J38: 78.330955 | K38: 99.652941 | L38: 0.000000 | M38: 99.652941 | N38: 81.192089 | O38: 71.147135 | P38: 36

Sheet 能源催化（学硕）
A1: 学号 | B1: 姓名 | C1: 智育 | G1: 德育 | K1: 体育 | O1: 综合测评总分 | P1: 排名
C2: 基本分 | D2: 奖惩分 | E2: 总分 | F2: 最终成绩 | G2: 基本分 | H2: 奖惩分 | I2: 总分 | J2: 最终成绩 | K2: 基本分 | L2: 奖惩分 | M2: 总分 | N2: 最终成绩
A3: 2019210513 | B3: 杨正康 | C3: 80.39006211 | D3: 0.375 | E3: 80.7651 | F3: 75.4771 | G3: 96.4000 | H3: 4 | I3: 100.4000 | J3: 87.7256 | K3: 96.4000 | L3: 0.5000 | M3: 96.9000 | N3: 94.8935 | O3: 79.8684562 | P3: 23
A4: 2019210514 | B4: 方华 | C4: 82.13416149 | D4: 0.46875 | E4: 82.6029 | F4: 77.1947 | G4: 96.3087 | H4: 10 | I4: 106.3087 | J4: 92.8884 | K4: 96.3087 | L4: 0.0000 | M4: 96.3087 | N4: 94.3144 | O4: 82.04537141 | P4: 18
A5: 2019210522 | B5: 武宝强 | C5: 82.67267081 | D5: 24.33333333 | E5: 107.0060 | F5: 100.0000 | G5: 96.4000 | H5: -3 | I5: 93.4000 | J5: 81.6093 | K5: 96.4000 | L5: 0.5000 | M5: 96.9000 | N5: 94.8935 | O5: 95.81119928 | P5: 1
A6: 2019210523 | B6: 曹轶华 | C6: 83.61490683 | D6: 10.625 | E6: 94.2399 | F6: 88.0697 | G6: 96.1870 | H6: 0 | I6: 96.1870 | J6: 84.0444 | K6: 96.1870 | L6: 5.1667 | M6: 101.3536 | N6: 99.2549 | O6: 88.38318225 | P6: 3
A7: 2019210527 | B7: 范梦莹 | C7: 89.10416667 | D7: 7.5 | E7: 96.6042 | F7: 90.2792 | G7: 96.2478 | H7: 13.9 | I7: 110.1478 | J7: 96.2429 | K7: 96.2478 | L7: 5.1667 | M7: 101.4145 | N7: 99.3145 | O7: 92.37546049 | P7: 2
A8: 2019210532 | B8: 陈超 | C8: 90.82666667 | D8: 0 | E8: 90.8267 | F8: 84.8800 | G8: 96.3696 | H8: 14.7 | I8: 111.0696 | J8: 97.0482 | K8: 96.3696 | L8: 0.5000 | M8: 96.8696 | N8: 94.8637 | O8: 88.31199407 | P8: 4
A9: 2019210533 | B9: 孙炳 | C9: 85.8625 | D9: 0 | E9: 85.8625 | F9: 80.2408 | G9: 96.1870 | H9: 0.5 | I9: 96.6870 | J9: 84.4813 | K9: 96.1870 | L9: 0.5000 | M9: 96.6870 | N9: 94.6848 | O9: 82.53331598 | P9: 17
A10: 2019210534 | B10: 栾孟坤 | C10: 84.3875 | D10: 0 | E10: 84.3875 | F10: 78.8624 | G10: 96.1565 | H10: -3 | I10: 93.1565 | J10: 81.3965 | K10: 96.1565 | L10: 0.5000 | M10: 96.6565 | N10: 94.6550 | O10: 80.9484853 | P10: 20
A11: 2019210545 | B11: 曹磊 | C11: 80.90062112 | D11: 0 | E11: 80.9006 | F11: 75.6038 | G11: 96.1565 | H11: -0.5 | I11: 95.6565 | J11: 83.5809 | K11: 96.1565 | L11: 0.0000 | M11: 96.1565 | N11: 94.1654 | O11: 79.05539333 | P11: 25
A12: 2019210547 | B12: 马丽娅 | C12: 83.49565217 | D12: 2.542857143 | E12: 86.0385 | F12: 80.4053 | G12: 96.2174 | H12: 6 | I12: 102.2174 | J12: 89.3135 | K12: 96.2174 | L12: 0.0000 | M12: 96.2174 | N12: 94.2250 | O12: 83.56892703 | P12: 14
A13: 2019210548 | B13: 刘园园 | C13: 85.33478261 | D13: 2.083333333 | E13: 87.4181 | F13: 81.6946 | G13: 96.9478 | H13: 17.5 | I13: 114.4478 | J13: 100.0000 | K13: 96.9478 | L13: 5.1667 | M13: 102.1145 | N13: 100.0000 | O13: 87.18621658 | P13: 5
A14: 2019210560 | B14: 唐玉虎 | C14: 82.87554348 | D14: 8.86875 | E14: 91.7443 | F14: 85.7375 | G14: 96.1565 | H14: 4 | I14: 100.1565 | J14: 87.5128 | K14: 96.1565 | L14: 0.0000 | M14: 96.1565 | N14: 94.1654 | O14: 86.93537126 | P14: 6
A15: 2019210561 | B15: 肖浩 | C15: 87.5 | D15: 1.53125 | E15: 89.0313 | F15: 83.2021 | G15: 96.8870 | H15: 7.4 | I15: 104.2870 | J15: 91.1219 | K15: 96.8870 | L15: 0.0000 | M15: 96.8870 | N15: 94.8807 | O15: 85.95391594 | P15: 8
A16: 2019210565 | B16: 邱锦涵 | C16: 79.12173913 | D16: 0 | E16: 79.1217 | F16: 73.9414 | G16: 95.6696 | H16: 0 | I16: 95.6696 | J16: 83.5923 | K16: 95.6696 | L16: 4.6667 | M16: 100.3362 | N16: 98.2586 | O16: 78.30329946 | P16: 26
A17: 2019210566 | B17: 李呈玉 | C17: 82.00931677 | D17: 0 | E17: 82.0093 | F17: 76.6399 | G17: 95.9435 | H17: -1.5 | I17: 94.4435 | J17: 82.5210 | K17: 95.9435 | L17: 0.5000 | M17: 96.4435 | N17: 94.4464 | O17: 79.59678703 | P17: 24
A18: 2019210567 | B18: 周静 | C18: 86.01413043 | D18: 0.4375 | E18: 86.4516 | F18: 80.7914 | G18: 96.1565 | H18: 7 | I18: 103.1565 | J18: 90.1341 | K18: 96.1565 | L18: 4.6667 | M18: 100.8232 | N18: 98.7354 | O18: 84.45433551 | P18: 10
A19: 2019210568 | B19: 唐贺 | C19: 87.38571429 | D19: 0.40625 | E19: 87.7920 | F19: 82.0440 | G19: 95.9739 | H19: -1 | I19: 94.9739 | J19: 82.9845 | K19: 95.9739 | L19: 4.6667 | M19: 100.6406 | N19: 98.5566 | O19: 83.88332896 | P19: 12
A20: 2019210569 | B20: 翟文杰 | C20: 79.26956522 | D20: 0 | E20: 79.2696 | F20: 74.0795 | G20: 95.9435 | H20: -3.5 | I20: 92.4435 | J20: 80.7735 | K20: 95.9435 | L20: 0.0000 | M20: 95.9435 | N20: 93.9568 | O20: 77.40605781 | P20: 28
A21: 2019210587 | B21: 武宗会 | C21: 79.23097826 | D21: 0.375 | E21: 79.6060 | F21: 74.3939 | G21: 95.9130 | H21: -4.5 | I21: 91.4130 | J21: 79.8731 | K21: 95.9130 | L21: 4.6667 | M21: 100.5797 | N21: 98.4970 | O21: 77.90008094 | P21: 27
A22: 2019210588 | B22: 李晴阳 | C22: 82.86521739 | D22: 0.375 | E22: 83.2402 | F22: 77.7902 | G22: 96.1870 | H22: 1 | I22: 97.1870 | J22: 84.9182 | K22: 96.1870 | L22: 0.0000 | M22: 96.1870 | N22: 94.1952 | O22: 80.85631169 | P22: 21
A23: 2019210591 | B23: 赵吉雨 | C23: 85.39875776 | D23: 0.375 | E23: 85.7738 | F23: 80.1579 | G23: 96.3696 | H23: 7 | I23: 103.3696 | J23: 90.3203 | K23: 96.3696 | L23: 0.0000 | M23: 96.3696 | N23: 94.3740 | O23: 83.61198196 | P23: 13
A24: 2019210592 | B24: 夏添 | C24: 84.28757764 | D24: 0.1875 | E24: 84.4751 | F24: 78.9442 | G24: 96.2174 | H24: 5.5 | I24: 101.7174 | J24: 88.8767 | K24: 96.2174 | L24: 5.1667 | M24: 101.3841 | N24: 99.2847 | O24: 82.96477055 | P24: 16
A25: 2019210612 | B25: 杨江蒨 | C25: 87.74916667 | D25: 0.375 | E25: 88.1242 | F25: 82.3544 | G25: 95.6087 | H25: 10.2 | I25: 105.8087 | J25: 92.4515 | K25: 95.6087 | L25: 0.0000 | M25: 95.6087 | N25: 93.6289 | O25: 85.50127826 | P25: 9
A26: 2019210616 | B26: 刘昊 | C26: 86.90434783 | D26: 0 | E26: 86.9043 | F26: 81.2145 | G26: 95.8826 | H26: 1 | I26: 96.8826 | J26: 84.6522 | K26: 95.8826 | L26: 0.0000 | M26: 95.8826 | N26: 93.8972 | O26: 83.17028186 | P26: 15
A27: 2019210621 | B27: 任东成 | C27: 89.82173913 | D27: 0.8833333333 | E27: 90.7051 | F27: 84.7663 | G27: 96.2478 | H27: 7 | I27: 103.2478 | J27: 90.2139 | K27: 96.2478 | L27: 0.0000 | M27: 96.2478 | N27: 94.2548 | O27: 86.80469867 | P27: 7
A28: 2019210640 | B28: 杨子瑶 | C28: 84.31416667 | D28: 0.375 | E28: 84.6892 | F28: 79.1443 | G28: 96.4000 | H28: -1 | I28: 95.4000 | J28: 83.3568 | K28: 96.4000 | L28: 0.5000 | M28: 96.9000 | N28: 94.8935 | O28: 81.56172257 | P28: 19
A29: 2019210641 | B29: 刘孟 | C29: 79.29285714 | D29: 2.1 | E29: 81.3929 | F29: 76.0638 | G29: 96.8870 | H29: 6 | I29: 102.8870 | J29: 89.8986 | K29: 96.8870 | L29: 0.5000 | M29: 97.3870 | N29: 95.3704 | O29: 80.76142851 | P29: 22

Sheet 环境工程（学硕）
A1: 学号 | B1: 姓名 | C1: 智育 | G1: 德育 | K1: 体育 | O1: 综合测评总分 | P1: 排名
C2: 基本分 | D2: 奖惩分 | E2: 总分 | F2: 最终成绩 | G2: 基本分 | H2: 奖惩分 | I2: 总分 | J2: 最终成绩 | K2: 基本分 | L2: 奖惩分 | M2: 总分 | N2: 最终成绩
A3: 2019210646 | B3: 李倩文 | C3: 80.75775401 | E3: 80.75775401 | F3: 72.89303709 | G3: 99.5725 | H3: 4 | I3: 103.5725 | J3: 85.58260791 | K3: 98.625 | M3: 98.625 | N3: 95.81447403 | O3: 77.72309494 | P3: 16
A4: 2019210647 | B4: 王玉欢 | C4: 85.1 | E4: 85.1 | F4: 76.81240683 | G4: 102.52 | H4: 9 | I4: 111.52 | J4: 92.14967712 | K4: 98.675 | M4: 98.675 | N4: 95.86304918 | O4: 81.78492512 | P4: 6
A5: 2019210648 | B5: 王储 | C5: 84.02272727 | E5: 84.02272727 | F5: 75.84004595 | G5: 105.5375 | H5: 13 | I5: 118.5375 | J5: 97.94828149 | K5: 98.55 | L5: 0.5 | M5: 99.05 | N5: 96.22736277 | O5: 82.30042474 | P5: 4
A6: 2019210649 | B6: 邵晨 | C6: 82.02784091 | D6: 1 | E6: 83.02784091 | F6: 74.94204811 | G6: 98.0025 | H6: 9 | I6: 107.0025 | J6: 88.41683847 | K6: 98.575 | L6: 1 | M6: 99.575 | N6: 96.73740179 | O6: 79.81654155 | P6: 9
A7: 2019210650 | B7: 张可 | C7: 80.59230769 | E7: 80.59230769 | F7: 72.74370301 | G7: 102.055 | H7: 10.5 | I7: 112.555 | J7: 93.00490413 | K7: 98.675 | L7: 0.5 | M7: 99.175 | N7: 96.34880063 | O7: 79.15645299 | P7: 11
A8: 2019210651 | B8: 揭靖成 | C8: 80.71153846 | E8: 80.71153846 | F8: 72.85132231 | G8: 97.6075 | H8: 5 | I8: 102.6075 | J8: 84.78522234 | K8: 98.575 | M8: 98.575 | N8: 95.76589889 | O8: 77.52955997 | P8: 17
A9: 2019210652 | B9: 李敏 | C9: 84.76923077 | D9: 7 | E9: 91.76923077 | F9: =E9/E13*100 -> 82.8321444 | G9: 103.082 | H9: 8.4 | I9: 111.482 | J9: 92.11827748 | K9: 98.625 | L9: 0.5 | M9: 99.125 | N9: 96.30022549 | O9: =F9*0.7+J9*0.2+N9*0.1 -> 86.03617913 | P9: 2
A10: 2019210653 | B10: 翟光耀 | C10: 82.41111111 | D10: 0.125 | E10: 82.53611111 | F10: 74.49820617 | G10: 104.855 | H10: 7.4 | I10: 112.255 | J10: 92.75701224 | K10: 98.55 | L10: 0.5 | M10: 99.05 | N10: 96.22736277 | O10: 80.32288304 | P10: 7
A11: 2019210654 | B11: 李娟娟 | C11: 79.93076923 | D11: 0.875 | E11: 80.80576923 | F11: 72.93637627 | G11: 97.95 | H11: 11 | I11: 108.95 | J11: 90.02606996 | K11: 98.625 | M11: 98.625 | N11: 95.81447403 | O11: 78.64212478 | P11: 13
A12: 2019210655 | B12: 黄子萌 | C12: 89.02386364 | E12: 89.02386364 | F12: 80.35413903 | G12: 97.5725 | H12: 19.5 | I12: 117.0725 | J12: 96.73774278 | K12: 98.6 | L12: 4.3333 | M12: 102.9333 | N12: 100 | O12: 85.59544588 | P12: 3
A13: 2019210656 | B13: 姜梁妍 | C13: 90.52272727 | D13: 20.26666667 | E13: 110.7893939 | F13: 100 | G13: 104.5205 | H13: 16.5 | I13: 121.0205 | J13: 100 | K13: 98.75 | L13: 1 | M13: 99.75 | N13: 96.9074148 | O13: 99.69074148 | P13: 1
A14: 2019210657 | B14: 李晓萌 | C14: 75.41 | E14: 75.41 | F14: 68.06608225 | G14: 97.5375 | H14: 5 | I14: 102.5375 | J14: 84.7273809 | K14: 98.575 | M14: 98.575 | N14: 95.76589889 | O14: 74.16832364 | P14: 20
A15: 2019210658 | B15: 马志楠 | C15: 80.97727273 | E15: 80.97727273 | F15: 73.09117764 | G15: 101.125 | H15: 3 | I15: 104.125 | J15: 86.03914213 | K15: 98.7 | L15: 3.3333 | M15: 102.0333 | N15: 99.12564739 | O15: 78.28421751 | P15: 15
A16: 2019210659 | B16: 刘涛 | C16: 82.02613636 | E16: 82.02613636 | F16: 74.03789609 | G16: 97.5725 | H16: 5 | I16: 102.5725 | J16: 84.75630162 | K16: 98.575 | M16: 98.575 | N16: 95.76589889 | O16: 78.35437748 | P16: 14
A17: 2019210660 | B17: 郭晓培 | C17: 82.3530303 | E17: 82.3530303 | F17: 74.33295497 | G17: 101.4675 | H17: 4 | I17: 105.4675 | J17: 87.14845832 | K17: 98.525 | M17: 98.525 | N17: 95.71732374 | O17: 79.03449251 | P17: 12
A18: 2019210661 | B18: 肖向群 | C18: 77.38571429 | D18: 0.2333333333 | E18: 77.61904762 | F18: 70.0599984 | G18: 98.485 | H18: 9.5 | I18: 107.985 | J18: 89.2286844 | K18: 98.675 | L18: 0.5 | M18: 99.175 | N18: 96.34880063 | O18: 76.52261582 | P18: 18
A19: 2019210662 | B19: 尹子涵 | C19: 86.52556818 | E19: 86.52556818 | F19: 78.09914388 | G19: 99.485 | H19: 7 | I19: 106.485 | J19: 87.98922497 | K19: 98.675 | M19: 98.675 | N19: 95.86304918 | O19: 81.85355063 | P19: 5
A20: 2019210663 | B20: 李鹏 | C20: 77.27540107 | E20: 77.27540107 | F20: 69.74981839 | G20: 100.2925 | H20: 5 | I20: 105.2925 | J20: 87.00385472 | K20: 98.225 | M20: 98.225 | N20: 95.42587287 | O20: 75.7682311 | P20: 19
A21: 2019210664 | B21: 张瑞哲 | C21: 83.50965909 | E21: 83.50965909 | F21: 75.3769437 | G21: 102.4595 | H21: 6 | I21: 108.4595 | J21: 89.62076673 | K21: 98.55 | L21: 0.5 | M21: 99.05 | N21: 96.22736277 | O21: 80.31075021 | P21: 8
A22: 2019210665 | B22: 曲金秋 | C22: 81.55113636 | E22: 81.55113636 | F22: 73.60915469 | G22: 103.963 | H22: 6.5 | I22: 110.463 | J22: 91.27627138 | K22: 98.625 | M22: 98.625 | N22: 95.81447403 | O22: 79.36310996 | P22: 10

Sheet 环境科学
A1: 学号 | B1: 姓名 | C1: 智育 | G1: 德育 | K1: 体育 | O1: 综合测评总分 | P1: 排名
C2: 基本分 | D2: 奖惩分 | E2: 总分 | F2: 最终成绩 | G2: 基本分 | H2: 奖惩分 | I2: 总分 | J2: 最终成绩 | K2: 基本分 | L2: 奖惩分 | M2: 总分 | N2: 最终成绩
A3: 2019210501 | B3: 陈滢谕 | C3: 86.30888889 | E3: 86.30888889 | F3: 88.56893027 | G3: 97.555 | H3: 7 | I3: 104.555 | J3: 85.98980179 | K3: 98.6 | M3: 98.6 | N3: 99.84810127 | O3: 89.18102168 | P3: 5
A4: 2019210504 | B4: 邓萌 | C4: 89.15555556 | E4: 89.15555556 | F4: 91.49013833 | G4: 102.225 | H4: 10 | I4: 112.225 | J4: 92.29788634 | K4: 98.75 | M4: 98.75 | N4: 100 | O4: 92.5026741 | P4: 3
A5: 2019210505 | B5: 梁宇航 | C5: 88.59333333 | D5: 5 | E5: 93.59333333 | F5: 96.04412153 | G5: 102.0285 | H5: 12.4 | I5: 114.4285 | J5: 94.11012419 | K5: 98.5 | M5: 98.5 | N5: 99.74683544 | O5: 96.02759346 | P5: 2
A6: 2019210506 | B6: 刘欣渝 | C6: 85.06333333 | E6: 85.06333333 | F6: 87.29075922 | G6: 104.39 | H6: 17.2 | I6: 121.59 | J6: 100 | K6: 98.7 | M6: 98.7 | N6: 99.94936709 | O6: 91.09846816 | P6: 4
A7: 2019210507 | B7: 王靖菡 | C7: 83.53666667 | E7: 83.53666667 | F7: 85.72411603 | G7: 97.45 | H7: 5 | I7: 102.45 | J7: 84.2585739 | K7: 98.525 | M7: 98.525 | N7: 99.7721519 | O7: 86.83581119 | P7: 7
A8: 2019210508 | B8: 周博瑶 | C8: 87.42121212 | D8: 10.02705628 | E8: 97.4482684 | F8: 100 | G8: 101.5025 | H8: 7 | I8: 108.5025 | J8: 89.23636812 | K8: 98.55 | M8: 98.55 | N8: 99.79746835 | O8: 97.82702046 | P8: 1
A9: 2019210510 | B9: 曾成 | C9: 84.58333333 | E9: 84.58333333 | F9: 86.79819018 | G9: 97.5725 | H9: 3.5 | I9: 101.0725 | J9: 83.12566823 | K9: 98.675 | M9: 98.675 | N9: 99.92405063 | O9: 87.37627184 | P9: 6

Sheet 化学工艺（专硕）
A1: 学号 | B1: 姓名 | C1: 智育 | G1: 德育 | K1: 体育 | O1: 综合测评总分 | P1: 排名
C2: 基本分 | D2: 奖惩分 | E2: 总分 | F2: 最终成绩 | G2: 基本分 | H2: 奖惩分 | I2: 总分 | J2: 最终成绩 | K2: 基本分 | L2: 奖惩分 | M2: 总分 | N2: 最终成绩
A3: 2019215203 | B3: 谢浩东 | C3: 82.600000 | D3: 0.875000 | E3: 83.475000 | F3: 73.330708 | G3: 108.6790698 | H3: 8.20 | I3: 116.879070 | J3: 93.2828480 | K3: 97.593023 | L3: 0.000000 | M3: 97.593023 | N3: 88.876888 | O3: =F3*0.7+J3*0.2+N3*0.1 -> 78.875754 | P3: =RANK(O3,$O$3:$O$44) -> 7
A4: 2019215204 | B4: 于亚楠 | C4: 85.296875 | D4: 0.177083 | E4: 85.473958 | F4: 75.086743 | G4: 103.6139535 | H4: 8.20 | I4: 111.813953 | J4: 89.2403066 | K4: 97.500000 | L4: 0.000000 | M4: 97.500000 | N4: 89 | O4: 79.287999 | P4: =RANK(O4,$O$3:$O$45) -> 6
A5: 2019215205 | B5: 李益衡 | C5: 79.593333 | E5: 79.593333 | F5: 69.920761 | G5: 96.75348837 | H5: -3.00 | I5: 93.753488 | J5: 74.8259925 | K5: 97.523256 | L5: 0.000000 | M5: 97.523256 | N5: 88.813351 | O5: 72.791066 | P5: =RANK(O5,$O$3:$O$45) -> 37
A6: 2019215206 | B6: 刘欣 | C6: 83.924138 | E6: 83.924138 | F6: 73.725264 | G6: 102.5139535 | H6: 5.50 | I6: 108.013953 | J6: 86.2074726 | K6: 103.980620 | L6: 0.000000 | M6: 103.980620 | N6: 94.694002 | O6: 78.318580 | P6: =RANK(O6,$O$3:$O$45) -> 11
A7: 2019215207 | B7: 赵芳钰 | C7: 80.156667 | E7: 80.156667 | F7: 70.415635 | G7: 111.5744186 | H7: 7.20 | I7: 118.77441860 | J7: 94.795553 | K7: 97.825581 | L7: 0.000000 | M7: 98.825581 | N7: 89.999365 | O7: 77.249991 | P7: =RANK(O7,$O$3:$O$45) -> 20
A8: 2019215208 | B8: 王梦雅 | C8: 79.793103 | E8: 79.793103 | F8: 70.096254 | G8: 113.9325581 | H8: -5.00 | I8: 108.932558 | J8: 86.9406240 | K8: 104.375969 | L8: 0.000000 | M8: 104.375969 | N8: 95.054042 | O8: 75.960906 | P8: =RANK(O8,$O$3:$O$45) -> 27
A9: 2019215214 | B9: 林正令 | C9: 78.895862 | E9: 78.895862 | F9: 69.308049 | G9: 96.98139535 | H9: -5.00 | I9: 91.981395 | J9: 73.4116599 | K9: 97.779070 | L9: 0.000000 | M9: 97.779070 | N9: 89.046318 | O9: 72.102598 | P9: =RANK(O9,$O$3:$O$45) -> 40
A10: 2019215218 | B10: 史永鑫 | C10: 84.034483 | E10: 84.034483 | F10: 73.822200 | G10: 101.9930233 | H10: -2.00 | I10: 99.993023 | J10: 79.8058541 | K10: 96.604651 | L10: 0.000000 | M10: 96.604651 | N10: 87.976788 | O10: 76.434389 | P10: =RANK(O10,$O$3:$O$45) -> 23
A11: 2019215219 | B11: 刘俊良 | C11: 83.241379 | E11: 83.241379 | F11: 73.125478 | G11: 108.744186 | H11: 2.70 | I11: 111.444186 | J11: 88.9451900 | K11: 97.755814 | L11: 0.000000 | M11: 97.755814 | N11: 89.025139 | O11: 77.879387 | P11: =RANK(O11,$O$3:$O$45) -> 14
A12: 2019215225 | B12: 王璇 | C12: 82.586207 | E12: 82.586207 | F12: 72.549925 | G12: 100.3232558 | H12: 1.00 | I12: 101.323256 | J12: 80.8675316 | K12: 97.290698 | L12: 0.000000 | M12: 97.290698 | N12: 88.601563 | O12: 75.818610 | P12: =RANK(O12,$O$3:$O$45) -> 28
A13: 2019215226 | B13: 徐文元 | C13: 84.241379 | E13: 84.241379 | F13: 74.003953 | G13: 98.19302326 | H13: -1.00 | I13: 97.193023 | J13: 77.5711342 | K13: 97.802326 | L13: 0.000000 | M13: 97.802326 | N13: 89.067497 | O13: 76.223744 | P13: =RANK(O13,$O$3:$O$45) -> 25
A14: 2019215236 | B14: 张娟 | C14: 78.656250 | D14: 0.125000 | E14: 78.781250 | F14: 69.207366 | G14: 96.7372093 | H14: -3.00 | I14: 93.737209 | J14: 74.8130000 | K14: 97.430233 | L14: 0.000000 | M14: 97.430233 | N14: 88.728636 | O14: 72.280619 | P14: =RANK(O14,$O$3:$O$45) -> 38
A15: 2019215238 | B15: 杨子盼 | C15: 82.445141 | D15: 12.500000 | E15: 94.945141 | F15: 83.406941 | G15: 99.46511628 | H15: -0.50 | I15: 98.965116 | J15: 78.9854669 | K15: 96.906977 | L15: 0.000000 | M15: 96.906977 | N15: 88.252113 | O15: 83.007163 | P15: =RANK(O15,$O$3:$O$45) -> 2
A16: 2019215240 | B16: 许佳翠 | C16: 86.866667 | E16: 86.866667 | F16: 76.310203 | G16: 98.4 | H16: -3.00 | I16: 95.400000 | J16: 76.1400969 | K16: 97.616279 | L16: 0.000000 | M16: 97.616279 | N16: 88.898066 | O16: 77.534968 | P16: =RANK(O16,$O$3:$O$45) -> 16
A17: 2019215241 | B17: 宋传洋 | C17: 82.982759 | E17: 82.982759 | F17: 72.898286 | G17: 101.7744186 | H17: 1.00 | I17: 102.774419 | J17: 82.0257252 | K17: 109.806977 | L17: 0.000000 | M17: 109.806977 | N17: 100.000000 | O17: 77.433945 | P17: =RANK(O17,$O$3:$O$45) -> 18
A18: 2019215242 | B18: 孙冬 | C18: 78.241379 | D18: 0.555556 | E18: 78.796935 | F18: 69.221144 | G18: 101.4046512 | H18: -1.50 | I18: 99.904651 | J18: 79.7353230 | K18: 98.151163 | L18: 0.000000 | M18: 98.151163 | N18: 89.385179 | O18: 73.340384 | P18: =RANK(O18,$O$3:$O$45) -> 34
A19: 2019215243 | B19: 俎文波 | C19: 84.655172 | D19: 0.125000 | E19: 84.780172 | F19: 74.477269 | G19: 96.31860465 | H19: 0.00 | I19: 96.318605 | J19: 76.8732483 | K19: 97.290698 | L19: 0.000000 | M19: 97.290698 | N19: 88.601563 | O19: 76.368895 | P19: =RANK(O19,$O$3:$O$45) -> 24
A20: 2019215244 | B20: 王钢 | C20: 80.834483 | E20: 80.834483 | F20: 71.011079 | G20: 97.26976744 | H20: -1.50 | I20: 95.769767 | J20: 76.4352135 | K20: 97.197674 | L20: 0.000000 | M20: 97.197674 | N20: 88.516848 | O20: 73.846483 | P20: =RANK(O20,$O$3:$O$45) -> 32
A21: 2019215245 | B21: 张翠娇 | C21: 85.055172 | E21: 85.055172 | F21: 74.718850 | G21: 99.26976744 | H21: 0.00 | I21: 99.269767 | J21: 79.2286133 | K21: 97.453488 | L21: 0.000000 | M21: 97.453488 | N21: 88.749815 | O21: 77.023899 | P21: =RANK(O21,$O$3:$O$45) -> 22
A22: 2019215247 | B22: 徐世梅 | C22: 81.896552 | E22: 81.896552 | F22: 71.944081 | G22: 97.94883721 | H22: -2.50 | I22: 95.448837 | J22: 76.1790745 | K22: 97.546512 | L22: 0.000000 | M22: 97.546512 | N22: 88.834530 | O22: 74.480124 | P22: =RANK(O22,$O$3:$O$45) -> 31
A23: 2019215248 | B23: 高慧慧 | C23: 84.293103 | D23: 1.250000 | E23: 85.543103 | F23: 75.147485 | G23: 102.627907 | H23: 0.00 | I23: 102.627907 | J23: 81.9087922 | K23: 97.476744 | L23: 0.000000 | M23: 97.476744 | N23: 88.770994 | O23: 77.862098 | P23: =RANK(O23,$O$3:$O$45) -> 15
A24: 2019215249 | B24: 高海洋 | C24: 85.44827586 | E24: 85.44827586 | F24: 75.064182 | G24: 106.0790698 | H24: -1.00 | I24: 105.0790698 | J24: 83.8651001 | K24: 99.77906977 | L24: 0.000000 | M24: 99.779070 | N24: 90.86769598 | O24: 78.404717 | P24: =RANK(O24,$O$3:$O$45) -> 9
A25: 2019215251 | B25: 栾明月 | C25: 89.77931034 | E25: 89.77931034 | F25: 78.868888 | G25: 101.6604651 | H25: 8.50 | I25: 110.1604651 | J25: 87.9206340 | K25: 97.94186047 | L25: 0.000000 | M25: 97.941860 | N25: 89.19456977 | O25: 81.711805 | P25: =RANK(O25,$O$3:$O$45) -> 4
A26: 2019215254 | B26: 李之辉 | C26: 80.13793103 | E26: 80.13793103 | F26: 70.399176 | G26: 96.44883721 | H26: -4.50 | I26: 91.94883721 | J26: 73.3856748 | K26: 97.77906977 | L26: 0.000000 | M26: 97.779070 | N26: 89.04631809 | O26: 72.861190 | P26: =RANK(O26,$O$3:$O$45) -> 36
A27: 2019215255 | B27: 刘子成 | C27: 81.27586207 | E27: 81.27586207 | F27: 71.398820 | G27: 100.2418605 | H27: 1.00 | I27: 101.2418605 | J27: 80.8025688 | K27: 97.73255814 | L27: 0.000000 | M27: 97.732558 | N27: 89.00396046 | O27: 75.040084 | P27: =RANK(O27,$O$3:$O$45) -> 29
A28: 2019215257 | B28: 李正宇 | C28: 90.45862069 | D28: 23.375000 | E28: 113.8336207 | F28: 100.000000 | G28: 103.9813953 | H28: 19.50 | I28: 119.4813953 | J28: 95.3598010 | K28: 99.94186047 | L28: 0.000000 | M28: 99.941860 | N28: 91.01594767 | O28: 98.173555 | P28: =RANK(O28,$O$3:$O$45) -> 1
A29: 2019215258 | B29: 易天立 | C29: 86.82758621 | D29: 0.500000 | E29: 87.32758621 | F29: 76.715109 | G29: 97.62790698 | H29: -1.50 | I29: 96.12790698 | J29: 76.7210498 | K29: 97.40697674 | L29: 0.000000 | M29: 97.406977 | N29: 88.70745708 | O29: 77.915532 | P29: =RANK(O29,$O$3:$O$45) -> 13
A30: 2019215260 | B30: 王浩泽 | C30: 73.11724138 | E30: 73.11724138 | F30: 64.231675 | G30: 97.07906977 | H30: -42.50 | I30: 54.57906977 | J30: 43.5603319 | K30: 97.91860465 | L30: 0.000000 | M30: 97.918605 | N30: 89.17339096 | O30: 62.591578 | P30: =RANK(O30,$O$3:$O$45) -> 43
A31: 2019215261 | B31: 苏倩倩 | C31: 89.63103448 | E31: 89.63103448 | F31: 78.738631 | G31: 101.127907 | H31: 16.50 | I31: 117.627907 | J31: 93.8805056 | K31: 99.91860465 | L31: 0.000000 | M31: 99.918605 | N31: 90.99476886 | O31: 82.992620 | P31: =RANK(O31,$O$3:$O$45) -> 3
A32: 2019215264 | B32: 苏凯宁 | C32: 81.86206897 | E32: 81.86206897 | F32: 71.913788 | G32: 106.8651163 | H32: 11.00 | I32: 117.8651163 | J32: 94.0698257 | K32: 98.56976744 | L32: 0.000000 | M32: 98.569767 | N32: 89.76639772 | O32: 78.130257 | P32: =RANK(O32,$O$3:$O$45) -> 12
A33: 2019215266 | B33: 王倩倩 | C33: 80.44827586 | E33: 80.44827586 | F33: 70.671806 | G33: 104.8953488 | H33: 20.40 | I33: 125.2953488 | J33: 100.0000000 | K33: 100.0116279 | L33: 0.000000 | M33: 100.011628 | N33: 91.07948411 | O33: 78.578213 | P33: =RANK(O33,$O$3:$O$45) -> 8
A34: 2019215267 | B34: 李晓龙 | C34: 81 | E34: 81 | F34: 71.156482 | G34: 97.03023256 | H34: -4.00 | I34: 93.03023256 | J34: 74.2487518 | K34: 97.20930233 | L34: 0.000000 | M34: 97.209302 | N34: 88.52743717 | O34: 73.512032 | P34: =RANK(O34,$O$3:$O$45) -> 33
A35: 2019215268 | B35: 耿子硕 | C35: 82.8 | D35: 1.875000 | E35: 84.675 | F35: 74.384878 | G35: 101.9069767 | H35: -0.50 | I35: 101.4069767 | J35: 80.9343505 | K35: 97.68604651 | L35: 0.000000 | M35: 97.686047 | N35: 88.96160283 | O35: 77.152445 | P35: =RANK(O35,$O$3:$O$45) -> 21
A36: 2019215269 | B36: 孔一丹 | C36: 86.2 | E36: 86.2 | F36: 75.724553 | G36: 97.95348837 | H36: 4.00 | I36: 101.9534884 | J36: 81.3705292 | K36: 99.61627907 | L36: 0.000000 | M36: 99.616279 | N36: 90.71944429 | O36: 78.353237 | P36: =RANK(O36,$O$3:$O$45) -> 10
A37: 2019215272 | B37: 刘鑫智 | C37: 75.55172414 | E37: 75.55172414 | F37: 66.370308 | G37: 107.4976744 | H37: -2.00 | I37: 105.4976744 | J37: 84.1991944 | K37: 97.80232558 | L37: 0.000000 | M37: 97.802326 | N37: 89.0674969 | O37: 72.205804 | P37: =RANK(O37,$O$3:$O$45) -> 39
A38: 2019215273 | B38: 孙宁 | C38: 79 | E38: 79 | F38: 69.399532 | G38: 112.6116279 | H38: -1.00 | I38: 111.6116279 | J38: 89.0788277 | K38: 104.6782949 | L38: 0.000000 | M38: 105.678295 | N38: 96.24005511 | O38: 76.019443 | P38: =RANK(O38,$O$3:$O$45) -> 26
A39: 2019215275 | B39: 王惠琳 | C39: 85.44482759 | E39: 85.44482759 | F39: 75.061152 | G39: 104.8023256 | H39: 16.00 | I39: 120.8023256 | J39: 96.4140542 | K39: 98.26744186 | L39: 0.000000 | M39: 98.267442 | N39: 89.49107315 | O39: 80.774725 | P39: =RANK(O39,$O$3:$O$45) -> 5
A40: 2019215276 | B40: 张福灿 | C40: 75.16923077 | D40: 8.000000 | E40: 83.95 | F40: 73.747984 | G40: 102.0651163 | H40: 0.00 | I40: 102.0651163 | J40: 81.4596210 | K40: 104.7713182 | L40: 0.000000 | M40: 104.771318 | N40: 95.41408141 | O40: 77.456921 | P40: =RANK(O40,$O$3:$O$45) -> 17
A41: 2019215277 | B41: 郭侃 | C41: 84.21724138 | E41: 84.21724138 | F41: 73.982749 | G41: 102.9046512 | H41: 1.50 | I41: 104.4046512 | J41: 83.3268370 | K41: 98.15116279 | L41: 0.000000 | M41: 98.151163 | N41: 89.38517909 | O41: 77.391809 | P41: =RANK(O41,$O$3:$O$45) -> 19
A42: 2019215278 | B42: 黄琛 | C42: 78.1862069 | E42: 78.1862069 | F42: 68.684635 | G42: 106.6604651 | H42: -6.50 | I42: 100.1604651 | J42: 79.9394918 | K42: 97.8255814 | L42: 0.000000 | M42: 98.825581 | N42: 89.99936466 | O42: 73.067079 | P42: =RANK(O42,$O$3:$O$45) -> 35
A43: 2019215279 | B43: 代校军 | C43: 78.72413793 | D43: 1.500000 | E43: 80.22413793 | F43: 70.474907 | G43: 100.8023256 | H43: 3.00 | I43: 103.8023256 | J43: 82.8461124 | K43: 97.61627907 | L43: 0.000000 | M43: 97.616279 | N43: 88.8980664 | O43: 74.791464 | P43: =RANK(O43,$O$3:$O$45) -> 30
A44: 2019215280 | B44: 姚颖 | C44: 75.79310345 | E44: 75.79310345 | F44: 66.582353 | G44: 102.1953488 | H44: -17.00 | I44: 85.19534884 | J44: 67.9956196 | K44: 99.54651163 | L44: 0.000000 | M44: 99.546512 | N44: 90.65590785 | O44: 69.272362 | P44: =RANK(O44,$O$3:$O$45) -> 42
A45: 2018213519 | B45: 郝亮 | C45: 73.23 | E45: 73.225 | F45: 64.326338 | G45: 97.490625 | H45: 0.00 | I45: 97.490625 | J45: 77.8086544 | K45: 98.25 | L45: 0.000000 | M45: 98.250000 | N45: 89.47518904 | O45: 69.537687 | P45: =RANK(O45,$O$3:$O$45) -> 41

Sheet 化学工程（专硕）
A1: 学号 | B1: 姓名 | C1: 智育 | G1: 德育 | K1: 体育 | O1: 综合测评总分 | P1: 排名
C2: 基本分 | D2: 奖惩分 | E2: 总分 | F2: 最终成绩 | G2: 基本分 | H2: 奖惩分 | I2: 总分 | J2: 最终成绩 | K2: 基本分 | L2: 奖惩分 | M2: 总分 | N2: 最终成绩
A3: 2019215201 | B3: 王舍川 | C3: 83.5172 | E3: =C3+D3 -> 83.5172 | F3: 92.6939 | G3: 97.9390 | I3: 97.9390 | J3: 83.8417 | K3: 100.5000 | L3: 0.0000 | M3: 100.5000 | N3: 93.7792 | O3: =F3*0.7+J3*0.2+N3*0.1 -> 91.0320 | P3: =RANK(O3,O$3:O$26) -> 14
A4: 2019215202 | B4: 徐宇翔 | C4: 84.2069 | E4: 84.2069 | F4: 93.4594 | G4: 98.2624 | H4: 0.5000 | I4: 98.7624 | J4: 84.5467 | K4: 100.5000 | L4: 0.0000 | M4: 100.5000 | N4: 93.7792 | O4: 91.7088 | P4: =RANK(O4,O$3:O$26) -> 11
A5: 2019215210 | B5: 李玥 | C5: 84.1333 | E5: 84.1333 | F5: 93.3777 | G5: 98.2439 | H5: -4.0000 | I5: 94.2439 | J5: 80.6785 | K5: 100.5000 | L5: 0.0000 | M5: 100.5000 | N5: 93.7792 | O5: 90.8780 | P5: =RANK(O5,O$3:O$26) -> 15
A6: 2019215211 | B6: 张雷浩 | C6: 82.1379 | E6: 82.1379 | F6: 91.1631 | G6: 97.5908 | H6: -2.5000 | I6: 95.0908 | J6: 81.4036 | K6: 100.5000 | L6: 0.0000 | M6: 100.5000 | N6: 93.7792 | O6: 89.4728 | P6: =RANK(O6,O$3:O$26) -> 20
A7: 2019215212 | B7: 刘燕 | C7: 85.3034 | E7: 85.3034 | F7: 94.6764 | G7: 98.5065 | I7: 98.5065 | J7: 84.3276 | K7: 100.5000 | L7: 0.0000 | M7: 100.5000 | N7: 93.7792 | O7: 92.5169 | P7: =RANK(O7,O$3:O$26) -> 10
A8: 2019215215 | B8: 唐宇 | C8: 86.7333 | E8: 86.7333 | F8: 96.2634 | G8: 102.9141 | H8: 13.9000 | I8: 116.8141 | J8: 100.0000 | K8: 107.1666 | L8: 0.0000 | M8: 107.1666 | N8: 100.0000 | O8: 97.3844 | P8: =RANK(O8,O$3:O$26) -> 3
A9: 2019215216 | B9: 窦鑫桐 | C9: 86.5333 | D9: 1.0400 | E9: 87.5733 | F9: 97.1957 | G9: 97.2134 | H9: 4.5000 | I9: 101.7134 | J9: 87.0729 | K9: 107.1666 | L9: 0.0000 | M9: 107.1666 | N9: 100.0000 | O9: 95.4516 | P9: =RANK(O9,O$3:O$26) -> 5
A10: 2019215217 | B10: 罗景泉 | C10: 84.7667 | E10: 84.7667 | F10: 94.0807 | G10: 104.3971 | H10: 4.5000 | I10: 108.8971 | J10: 93.2226 | K10: 107.1666 | L10: 0.0000 | M10: 107.1666 | N10: 100.0000 | O10: 94.5010 | P10: =RANK(O10,O$3:O$26) -> 6
A11: 2019215220 | B11: 蒋志强 | C11: 90.1000 | E11: 90.1000 | F11: 100.0000 | G11: 100.6389 | H11: 6.0000 | I11: 106.6389 | J11: 91.2894 | K11: 100.5000 | L11: 0.0000 | M11: 100.5000 | N11: 93.7792 | O11: 97.6358 | P11: =RANK(O11,O$3:O$26) -> 2
A12: 2019215221 | B12: 郭梦全 | C12: 86.3000 | E12: 86.3000 | F12: 95.7825 | G12: 100.6206 | H12: -4.0000 | I12: 96.6206 | J12: 82.7131 | K12: 100.5000 | L12: 0.0000 | M12: 100.5000 | N12: 93.7792 | O12: 92.9683 | P12: =RANK(O12,O$3:O$26) -> 7
A13: 2019215222 | B13: 李正凯 | C13: 84.4333 | E13: 84.4333 | F13: 93.7107 | G13: 96.9569 | H13: -1.0000 | I13: 95.9569 | J13: 82.1450 | K13: 100.5000 | L13: 0.0000 | M13: 100.5000 | N13: 93.7792 | O13: 91.4044 | P13: =RANK(O13,O$3:O$26) -> 13
A14: 2019215231 | B14: 王梦钶 | C14: 85.6414 | E14: 85.6414 | F14: 95.0515 | G14: 97.4197 | I14: 97.4197 | J14: 83.3972 | K14: 100.5000 | L14: 0.0000 | M14: 100.5000 | N14: 93.7792 | O14: 92.5934 | P14: =RANK(O14,O$3:O$26) -> 9
A15: 2019215232 | B15: 付钰 | C15: 80.7828 | D15: 0.5000 | E15: 81.2828 | F15: 90.2139 | G15: 96.9387 | H15: -5.0000 | I15: 91.9387 | J15: 78.7051 | K15: 100.5000 | L15: 0.0000 | M15: 100.5000 | N15: 93.7792 | O15: 88.2687 | P15: =RANK(O15,O$3:O$26) -> 23
A16: 2019215233 | B16: 姜信舟 | C16: 89.2759 | E16: 89.2759 | F16: 99.0853 | G16: 103.0044 | H16: 5.0000 | I16: 108.0044 | J16: 92.4584 | K16: 107.1666 | L16: 0.0000 | M16: 107.1666 | N16: 100.0000 | O16: 97.8514 | P16: =RANK(O16,O$3:O$26) -> 1
A17: 2019215234 | B17: 陈广怀 | C17: 86.5517 | E17: 86.5517 | F17: 96.0618 | G17: 97.8717 | H17: -2.5000 | I17: 95.3717 | J17: 81.6440 | K17: 100.5000 | L17: 0.0000 | M17: 100.5000 | N17: 93.7792 | O17: 92.9500 | P17: =RANK(O17,O$3:O$26) -> 8
A18: 2019215235 | B18: 王思斯 | C18: 83.0345 | E18: 83.0345 | F18: 92.1581 | G18: 95.9608 | I18: 95.9608 | J18: 82.1483 | K18: 100.5000 | L18: 0.0000 | M18: 100.5000 | N18: 93.7792 | O18: 90.3183 | P18: =RANK(O18,O$3:O$26) -> 17
A19: 2019215237 | B19: 张启涵 | C19: 78.4862 | E19: 78.4862 | F19: 87.1101 | G19: 101.7128 | H19: 1.4000 | I19: 103.1128 | J19: 88.2709 | K19: 100.5000 | L19: 0.0000 | M19: 100.5000 | N19: 93.7792 | O19: 88.0092 | P19: =RANK(O19,O$3:O$26) -> 24
A20: 2019215250 | B20: 王昊宇 | C20: 82.3000 | E20: 82.3000 | F20: 91.3430 | G20: 97.5053 | H20: -1.5000 | I20: 96.0053 | J20: 82.1864 | K20: 100.5000 | L20: 0.0000 | M20: 100.5000 | N20: 93.7792 | O20: 89.7553 | P20: =RANK(O20,O$3:O$26) -> 18
A21: 2019215252 | B21: 白金虎 | C21: 82.4000 | E21: 82.4000 | F21: 91.4539 | G21: 97.6176 | H21: -2.5000 | I21: 95.1176 | J21: 81.4264 | K21: 100.5000 | L21: 0.0000 | M21: 100.5000 | N21: 93.7792 | O21: 89.6810 | P21: =RANK(O21,O$3:O$26) -> 19
A22: 2019215253 | B22: 蒋志成 | C22: 83.8000 | E22: 83.8000 | F22: 93.0078 | G22: 98.0750 | H22: -1.4000 | I22: 96.6750 | J22: 82.7597 | K22: 107.1666 | L22: 0.0000 | M22: 107.1666 | N22: 100.0000 | O22: 91.6574 | P22: =RANK(O22,O$3:O$26) -> 12
A23: 2019215259 | B23: 秦洪岭 | C23: 81.6897 | E23: 81.6897 | F23: 90.6655 | G23: 96.6769 | H23: -3.5000 | I23: 93.1769 | J23: 79.7651 | K23: 100.5000 | L23: 0.0000 | M23: 100.5000 | N23: 93.7792 | O23: 88.7968 | P23: =RANK(O23,O$3:O$26) -> 21
A24: 2019215263 | B24: 吴江 | C24: 82.4448 | D24: 0.0400 | E24: 82.4848 | F24: 91.5481 | G24: 97.1194 | H24: -1.5000 | I24: 95.6194 | J24: 81.8560 | K24: 107.1666 | L24: 0.0000 | M24: 107.1666 | N24: 100.0000 | O24: 90.4549 | P24: =RANK(O24,O$3:O$26) -> 16
A25: 2019215271 | B25: 王青 | C25: 87.1000 | E25: 87.1000 | F25: 96.6704 | G25: 103.0257 | H25: 2.0000 | I25: 105.0257 | J25: 89.9084 | K25: 107.1666 | L25: 0.0000 | M25: 107.1666 | N25: 100.0000 | O25: 95.6509 | P25: =RANK(O25,O$3:O$26) -> 4
A26: 2019215281 | B26: 杨松 | C26: 80.3121 | E26: 80.3121 | F26: 89.1366 | G26: 96.8720 | H26: -0.5000 | I26: 96.3720 | J26: 82.5003 | K26: 100.5000 | L26: 0.0000 | M26: 100.5000 | N26: 93.7792 | O26: 88.2736 | P26: =RANK(O26,O$3:O$26) -> 22

Sheet 能源催化（专硕）
A1: 学号 | B1: 姓名 | C1: 智育 | G1: 德育 | K1: 体育 | O1: 综合测评总分 | P1: 排名
C2: 基本分 | D2: 奖惩分 | E2: 总分 | F2: 最终成绩 | G2: 基本分 | H2: 奖惩分 | I2: 总分 | J2: 最终成绩 | K2: 基本分 | L2: 奖惩分 | M2: 总分 | N2: 最终成绩
A3: 2019215209 | B3: 田园 | C3: 81.72413793 | D3: 0.000000 | E3: 81.72413793 | F3: =E3/85.51034483*100 -> 95.57222356 | G3: 96.4583 | H3: 3.0000 | I3: 99.4583 | J3: 83.741246 | K3: 100.5000 | L3: 0.0000 | M3: 100.500000 | N3: 92.626728 | O3: =F3*0.7+J3*0.2+N3*0.1 -> 92.911478 | P3: 6
A4: 2019215213 | B4: 张旖旎 | C4: 83.76666667 | D4: 0.000000 | E4: 83.76666667 | F4: 97.96085706 | G4: 103.1000 | H4: -1.5000 | I4: 101.6000 | J4: 85.544472 | K4: 100.5000 | L4: 0.0000 | M4: 100.500000 | N4: 93 | O4: 94.944167 | P4: 3
A5: 2019215223 | B5: 鹿瑾 | C5: 80.05862069 | D5: 0.000000 | E5: 80.05862069 | F5: 93.62448584 | G5: 95.6417 | H5: -1.5000 | I5: 94.1417 | J5: 79.264755 | K5: 100.0000 | L5: 0.0000 | M5: 100.000000 | N5: 92.165899 | O5: 90.606681 | P5: 10
A6: 2019215224 | B6: 张淑莹 | C6: 81.62758621 | D6: 0.380000 | E6: 82.00758621 | F6: 95.90370191 | G6: 98.9000 | H6: 1.0000 | I6: 99.9000 | J6: 84.113117 | K6: 100.5000 | L6: 0.0000 | M6: 100.500000 | N6: 92.626728 | O6: 93.217888 | P6: 5
A7: 2019215227 | B7: 李佳晴 | C7: 85.51034483 | D7: 0.000000 | E7: 85.51034483 | F7: 100 | G7: 102.1166 | H7: 2.5000 | I7: 104.6166 | J7: 88.084396 | K7: 100.5000 | L7: 0.0000 | M7: 100.500000 | N7: 92.626728 | O7: 96.879552 | P7: 2
A8: 2019215228 | B8: 李心童 | C8: 75.35172414 | D8: 0.000000 | E8: 75.35172414 | F8: 88.12000968 | G8: 97.2833 | H8: 1.5000 | I8: 98.7833 | J8: 83.172914 | K8: 108.5000 | L8: 0.0000 | M8: 108.500000 | N8: 100.000000 | O8: 88.318590 | P8: 13
A9: 2019215229 | B9: 张小亮 | C9: 80.54827586 | D9: 0.000000 | E9: 80.54827586 | F9: 94.19711267 | G9: 97.3417 | H9: 4.5000 | I9: 101.8417 | J9: 85.747949 | K9: 100.5000 | L9: 0.0000 | M9: 100.500000 | N9: 92.626728 | O9: 92.350241 | P9: 7
A10: 2019215230 | B10: 马宇航 | C10: 79.63333333 | D10: 0.000000 | E10: 79.63333333 | F10: 93.12713391 | G10: 98.2000 | H10: 1.0000 | I10: 99.2000 | J10: 83.523736 | K10: 100.5000 | L10: 0.0000 | M10: 100.500000 | N10: 92.626728 | O10: 91.156414 | P10: 8
A11: 2019215246 | B11: 周传行 | C11: 77.87931034 | D11: 0.000000 | E11: 77.87931034 | F11: 91.07589321 | G11: 97.0500 | H11: -5.0000 | I11: 92.0500 | J11: 77.503628 | K11: 100.5000 | L11: 0.0000 | M11: 100.500000 | N11: 92.626728 | O11: 88.516524 | P11: 12
A12: 2019215262 | B12: 张浩 | C12: 80.62413793 | D12: 0.000000 | E12: 80.62413793 | F12: 94.2858295 | G12: 103.2834 | H12: 13.5000 | I12: 116.7834 | J12: 98.328459 | K12: 100.5000 | L12: 0.0000 | M12: 100.500000 | N12: 92.626728 | O12: 94.928445 | P12: 4
A13: 2019215265 | B13: 高宁晗 | C13: 84.17241379 | D13: 0.000000 | E13: 84.17241379 | F13: 98.43535769 | G13: 105.2686 | H13: 13.5000 | I13: 118.7686 | J13: 100.000000 | K13: 107.1667 | L13: 0.0000 | M13: 107.166700 | N13: 98.771152 | O13: 98.781866 | P13: 1
A14: 2019215270 | B14: 鲁阳 | C14: 77.72413793 | D14: 0.000000 | E14: 77.72413793 | F14: 90.89442697 | G14: 102.7583 | H14: 1.5000 | I14: 104.2583 | J14: 87.782689 | K14: 100.5000 | L14: 0.0000 | M14: 100.500000 | N14: 92.626728 | O14: 90.445309 | P14: 11
A15: 2019215274 | B15: 王艳平 | C15: 78.7 | D15: 0.000000 | E15: 78.7 | F15: 92.03564803 | G15: 101.9083 | H15: -2.0000 | I15: 99.9083 | J15: 84.120134 | K15: 107.1667 | L15: 0.0000 | M15: 107.166700 | N15: 98.771152 | O15: 91.126096 | P15: 9

Sheet 环境工程（专硕）
A1: 学号 | B1: 姓名 | C1: 智育 | G1: 德育 | K1: 体育 | O1: 综合测评总分 | P1: 排名
C2: 基本分 | D2: 奖惩分 | E2: 总分 | F2: 最终成绩 | G2: 基本分 | H2: 奖惩分 | I2: 总分 | J2: 最终成绩 | K2: 基本分 | L2: 奖惩分 | M2: 总分 | N2: 最终成绩
A3: 2019215284 | B3: 王冀星 | C3: 83.77192982 | E3: 83.77192982 | F3: 83.27689495 | G3: 97.985 | H3: 9 | I3: 106.985 | J3: 87.22077287 | K3: 100.025 | M3: 100.025 | N3: 97.67274723 | O3: 85.50525576 | P3: 9
A4: 2019215285 | B4: 王小鹏 | C4: 84.96666667 | E4: 84.96666667 | F4: 84.46457171 | G4: 98.38 | H4: 10.5 | I4: 110.38 | J4: 89.98858634 | K4: 102.0083 | M4: 102.0083 | N4: 99.60940666 | O4: 87.08385813 | P4: 6
A5: 2019215286 | B5: 纪奕辉 | C5: 78.48333333 | E5: 78.48333333 | F5: 78.01955045 | G5: 97.4325 | H5: 5 | I5: 99.9325 | J5: 81.47113974 | K5: 99.45 | M5: 99.45 | N5: 97.1112693 | O5: 80.61904019 | P5: 12
A6: 2019215287 | B6: 王育堃 | C6: 100.5944444 | E6: 100.5944444 | F6: 100 | G6: 103.88 | H6: 6 | I6: 113.38 | J6: 92.43437143 | K6: 98.95 | M6: 98.95 | N6: 96.62302763 | O6: 98.14917705 | P6: 1
A7: 2019215288 | B7: 张雯滔 | C7: 85.11428571 | E7: 85.11428571 | F7: 84.61131843 | G7: 100.4675 | H7: 5 | I7: 101.9675 | J7: 83.13019729 | K7: 99.325 | M7: 99.325 | N7: 96.98920888 | O7: 85.55288325 | P7: 8
A8: 2019215289 | B8: 刘彦博 | C8: 84.63333333 | D8: =10*1/10*1/8 -> 0.125 | E8: 84.75833333 | F8: 84.25746949 | G8: 95.985 | H8: 13 | I8: 108.985 | J8: 88.85129627 | K8: 102.4083 | M8: 102.4083 | N8: 100 | O8: 86.75048789 | P8: 7
A9: 2019215290 | B9: 王珏 | C9: 86.68095238 | E9: 86.68095238 | F9: 86.16872717 | G9: 102.645 | H9: 16.5 | I9: 121.145 | J9: 98.76487853 | K9: 99.225 | M9: 99.225 | N9: 96.89156055 | O9: 89.76024078 | P9: 3
A10: 2019215291 | B10: 池皓 | C10: 82.43333333 | D10: 0.4000 | E10: 82.83333333 | F10: 82.34384492 | G10: 97.1075 | H10: 9.5 | I10: 105.6075 | J10: 86.09774988 | K10: 100.25 | M10: 100.25 | N10: 97.89245598 | O10: 84.64948702 | P10: 10
A11: 2019215292 | B11: 刘莎莎 | C11: 90.16666667 | E11: 90.16666667 | F11: 89.63384327 | G11: 104.1425 | H11: 11 | I11: 118.1425 | J11: 96.31705527 | K11: 99.875 | M11: 99.875 | N11: 97.52627473 | O11: 91.75972881 | P11: 2
A12: 2019215293 | B12: 刘冠男 | C12: 74.88333333 | E12: 74.88333333 | F12: 74.44082399 | G12: 97.5375 | H12: 3.5 | I12: 98.5375 | J12: 80.33384967 | K12: 98.85 | M12: 98.85 | N12: 96.52537929 | O12: 77.82788466 | P12: 14
A13: 2019215294 | B13: 赵东松 | C13: 76.66666667 | E13: 76.66666667 | F13: 76.21361904 | G13: 98.95 | H13: 5 | I13: 102.45 | J13: 83.52356106 | K13: 98.9 | M13: 98.9 | N13: 96.57420346 | O13: 79.71166589 | P13: 13
A14: 2019215295 | B14: 南少帅 | C14: 85.94289048 | E14: 85.94289048 | F14: 85.43502671 | G14: 102.1565 | H14: 10 | I14: 115.1565 | J14: 93.88268384 | K14: 99.8 | M14: 99.8 | N14: 97.45303847 | O14: 88.32635931 | P14: 5
A15: 2019215296 | B15: 何旭 | C15: 82.75112782 | E15: 82.75112782 | F15: 82.26212519 | G15: 97.985 | H15: 5.5 | I15: 100.485 | J15: 81.92157182 | K15: 98.75 | M15: 98.75 | N15: 96.42773096 | O15: 83.61057509 | P15: 11
A16: 2019215298 | B16: 王雨竹 | C16: 84.38888889 | E16: 84.38888889 | F16: 83.89020821 | G16: 106.16 | H16: 16.5 | I16: 122.66 | J16: 100 | K16: 98.8 | M16: 98.8 | N16: 96.47655512 | O16: 88.37080126 | P16: 4

Sheet 国际班
A1: 学号 | B1: 姓名 | C1: 智育 | G1: 德育 | K1: 体育 | O1: 综合测评总分 | P1: 排名
C2: 基本分 | D2: 奖惩分 | E2: 总分 | F2: 最终成绩 | G2: 基本分 | H2: 奖惩分 | I2: 总分 | J2: 最终成绩 | K2: 基本分 | L2: 奖惩分 | M2: 总分 | N2: 最终成绩
A3: 2019210509 | B3: 郭靖涵 | C3: 92.30909091 | D3: 14.02137446 | E3: 106.3304654 | F3: 100 | G3: 95.23333333 | H3: 5 | I3: 100.2333333 | J3: 78.7378895 | K3: 100 | M3: 100 | N3: 89.73975474 | O3: 94.72155337 | P3: 2
A4: 2019210521 | B4: 刘雅欣 | C4: 88.40272727 | E4: 88.40272727 | F4: 83.13960347 | G4: 105.1333333 | H4: -3 | I4: 102.1333333 | J4: 80.23042681 | K4: 100.5 | L4: 1 | M4: 101.5 | N4: 91.08585106 | O4: 83.3523929 | P4: 8
A5: 2019210535 | B5: 魏斌 | C5: 89.22909091 | E5: 89.22909091 | F5: 83.91676892 | G5: 98.4 | H5: -1.5 | I5: 96.9 | J5: 76.11940299 | K5: 100 | M5: 100 | N5: 89.73975474 | O5: 82.93959431 | P5: 9
A6: 2019210546 | B6: 陈延达 | C6: 89.71 | E6: 89.71 | F6: 84.36904672 | G6: 98.76666667 | H6: -1 | I6: 97.76666667 | J6: 76.80020948 | K6: 100 | M6: 100 | N6: 89.73975474 | O6: 83.39235007 | P6: 7
A7: 2019210595 | B7: 李硕凡 | C7: 88.23961039 | D7: 0.75 | E7: 88.98961039 | F7: 83.69154605 | G7: 99.2 | H7: -2.5 | I7: 96.7 | J7: 75.96229379 | K7: 100 | M7: 100 | N7: 89.73975474 | O7: 82.75051647 | P7: 11
A8: 2019210604 | B8: 孔涛 | C8: 91.23542857 | D8: 0.5 | E8: 91.73542857 | F8: 86.27388985 | G8: 94.86666667 | H8: 2.5 | I8: 97.36666667 | J8: 76.4859911 | K8: 106.6666667 | M8: 106.6666667 | N8: 95.72240508 | O8: 85.26116162 | P8: 5
A9: 2019210626 | B9: 王震 | C9: 90.33181818 | D9: 2.869 | E9: 93.20081818 | F9: 87.65203637 | G9: 99.8 | H9: -2.5 | I9: 97.3 | J9: 76.43362137 | K9: 100 | M9: 100 | N9: 89.73975474 | O9: 85.61712521 | P9: 4
A10: 2019210627 | B10: 高煜峰 | C10: 84.43545455 | D10: 0.7675 | E10: 85.20295455 | F10: 80.13033165 | G10: 102.2 | H10: 7.8 | I10: 110 | J10: 86.41005499 | K10: 100.5 | M10: 100.5 | N10: 90.18845351 | O10: 82.3920885 | P10: 12
A11: 2019210642 | B11: 陈霖 | C11: 90.13181818 | D11: 9.017 | E11: 99.14881818 | F11: 93.24591766 | G11: 102.4 | H11: 24.9 | I11: 127.3 | J11: 100 | K11: 104.4333333 | L11: 7 | M11: 111.4333333 | N11: 100 | O11: 95.27214236 | P11: 1
A12: 2019210645 | B12: 王华君 | C12: 85.00454545 | D12: 3.1667 | E12: 88.17124545 | F12: 82.9219031 | G12: 95.06666667 | H12: 12.5 | I12: 107.5666667 | J12: 84.49855983 | K12: 101 | L12: 5 | M12: 106 | N12: 95.12414002 | O12: 84.45745814 | P12: 6
A13: 2019215282 | B13: 潘星成 | C13: 85.48275862 | E13: 85.48275862 | F13: 80.39347738 | G13: 101.7 | H13: 0 | I13: 101.7 | J13: 79.89002357 | K13: 100 | M13: 100 | N13: 89.73975474 | O13: 81.22741435 | P13: 13
A14: 2019215283 | B14: 曹越 | C14: 86.80740741 | E14: 86.80740741 | F14: 81.63926219 | G14: 97.26666667 | H14: 7 | I14: 104.2666667 | J14: 81.90625818 | K14: 104.4333333 | M14: 104.4333333 | N14: 93.71821717 | O14: 82.90055688 | P14: 10
A15: 2019215297 | B15: 赵景宜 | C15: 82.9125 | D15: 11.08809524 | E15: 94.00059524 | F15: 88.40419809 | G15: 94.23333333 | H15: 5 | I15: 99.23333333 | J15: 77.95234355 | K15: 100 | M15: 100 | N15: 89.73975474 | O15: 86.44738285 | P15: 3
